[Event "Titled Tuesday Blitz August 1 Early 2023"]
[White "FuenfgegenWilly"]
[Black "Borgaonkar Akshay"]
[BlackFideId "25639110"]
[WhiteElo "2412"]
[BlackElo "2568"]
[Result "0-1"]
[Round "6"]
[TimeControl "180+1"]
[Date "2023.08.01"]
[WhiteClock "0:00:08"]
[BlackClock "0:01:18"]
[Board "144"]

1. e4 {[%clk 0:03:00]}  c5 {[%clk 0:03:00]} 2. Nc3 {[%clk 0:03:01]}  e6 {[%clk 0:03:00]} 3. f4 {[%clk 0:03:01]}  a6 {[%clk 0:03:01]} 4. Nf3 {[%clk 0:03:01]}  b5 {[%clk 0:03:01]} 5. d3 {[%clk 0:03:01]}  Bb7 {[%clk 0:03:01]} 6. g3 {[%clk 0:03:01]}  Nc6 {[%clk 0:03:01]} 7. Bg2 {[%clk 0:03:02]}  h5 {[%clk 0:03:02]} 8. h3 {[%clk 0:02:58]}  Nf6 {[%clk 0:03:02]} 9. O-O {[%clk 0:02:58]}  Qc7 {[%clk 0:03:02]} 10. e5 {[%clk 0:02:55]}  Nh7 {[%clk 0:02:58]} 11. Ne4 {[%clk 0:02:54]}  O-O-O {[%clk 0:02:53]} 12. a4 {[%clk 0:02:50]}  b4 {[%clk 0:02:52]} 13. Be3 {[%clk 0:02:48]}  Na5 {[%clk 0:02:48]} 14. c3 {[%clk 0:02:39]}  b3 {[%clk 0:02:47]} 15. Nfd2 {[%clk 0:02:32]}  f5 {[%clk 0:02:45]} 16. exf6 {[%clk 0:02:28]}  Nxf6 {[%clk 0:02:45]} 17. Nxb3 {[%clk 0:02:27]}  Nxb3 {[%clk 0:02:36]} 18. Qxb3 {[%clk 0:02:28]}  c4 {[%clk 0:02:37]} 19. Qd1 {[%clk 0:02:10]}  cxd3 {[%clk 0:02:35]} 20. Qxd3 {[%clk 0:02:10]}  d5 {[%clk 0:02:34]} 21. Nxf6 {[%clk 0:02:05]}  gxf6 {[%clk 0:02:35]} 22. a5 {[%clk 0:02:05]}  Bc5 {[%clk 0:02:32]} 23. Bxc5 {[%clk 0:02:00]}  Qxc5+ {[%clk 0:02:33]} 24. Qd4 {[%clk 0:02:01]}  Qe7 {[%clk 0:02:26]} 25. c4 {[%clk 0:01:59]}  e5 {[%clk 0:02:23]} 26. fxe5 {[%clk 0:01:57]}  fxe5 {[%clk 0:02:24]} 27. Qb6 {[%clk 0:01:55]}  d4 {[%clk 0:02:10]} 28. Rf6 {[%clk 0:01:45]}  Bxg2 {[%clk 0:01:58]} 29. Kxg2 {[%clk 0:01:28]}  Qb7+ {[%clk 0:01:57]} 30. Rc6+ {[%clk 0:01:28]}  Kb8 {[%clk 0:01:56]} 31. Rf1 {[%clk 0:01:23]}  Rd7 {[%clk 0:01:37]} 32. Qc5 {[%clk 0:01:19]}  Rc8 {[%clk 0:01:32]} 33. Rf8 {[%clk 0:01:07]}  Rc7 {[%clk 0:01:20]} 34. Rxc8+ {[%clk 0:00:14]}  Rxc8 {[%clk 0:01:20]} 35. Qxe5+ {[%clk 0:00:12]}  Ka8 {[%clk 0:01:19]} 36. Qxd4 {[%clk 0:00:12]}  Qxc6+ {[%clk 0:01:20]} 37. Kh2 {[%clk 0:00:11]}  Qxc4 {[%clk 0:01:19]} 38. Qd6 {[%clk 0:00:08]}  Qc2+ {[%clk 0:01:19]} 39. Kg1 {[%clk 0:00:08]}  Qc1+ {[%clk 0:01:19]} 40. Kf2 {[%clk 0:00:08]}  Rc2+ {[%clk 0:01:19]} 41. Kf3 {[%clk 0:00:09]}  Qf1+ {[%clk 0:01:19]} 42. Ke4 {[%clk 0:00:08]}  Re2+ {[%clk 0:01:18]} 0-1


[Site "https://www.chess.com"]

[Event "Titled Tuesday Blitz August 1 Early 2023"]
[White "Tologon tegin, Semetei"]
[Black "Silva Lucena, Cristian"]
[WhiteFideId "13800574"]
[BlackFideId "2232588"]
[WhiteElo "2564"]
[BlackElo "2406"]
[Result "1-0"]
[Round "6"]
[TimeControl "180+1"]
[Date "2023.08.01"]
[WhiteClock "0:00:09"]
[BlackClock "0:00:00"]
[Board "145"]

1. e4 {[%clk 0:02:58]}  c6 {[%clk 0:02:59]} 2. Nc3 {[%clk 0:02:56]}  d5 {[%clk 0:02:59]} 3. Nf3 {[%clk 0:02:57]}  Bg4 {[%clk 0:02:59]} 4. h3 {[%clk 0:02:57]}  Bxf3 {[%clk 0:03:00]} 5. Qxf3 {[%clk 0:02:57]}  e6 {[%clk 0:03:01]} 6. g3 {[%clk 0:02:56]}  Nf6 {[%clk 0:03:01]} 7. Bg2 {[%clk 0:02:56]}  Bb4 {[%clk 0:02:53]} 8. e5 {[%clk 0:02:49]}  Nfd7 {[%clk 0:02:50]} 9. Qe2 {[%clk 0:02:37]}  Qc7 {[%clk 0:02:41]} 10. f4 {[%clk 0:02:32]}  a6 {[%clk 0:02:38]} 11. O-O {[%clk 0:02:27]}  c5 {[%clk 0:02:36]} 12. d3 {[%clk 0:02:23]}  Nc6 {[%clk 0:02:32]} 13. Nd1 {[%clk 0:02:20]}  Nd4 {[%clk 0:02:32]} 14. Qf2 {[%clk 0:02:20]}  Ba5 {[%clk 0:02:30]} 15. c3 {[%clk 0:02:20]}  Nc6 {[%clk 0:02:31]} 16. Be3 {[%clk 0:02:02]}  g6 {[%clk 0:02:25]} 17. d4 {[%clk 0:02:00]}  cxd4 {[%clk 0:02:25]} 18. cxd4 {[%clk 0:01:54]}  h5 {[%clk 0:02:19]} 19. Rc1 {[%clk 0:01:51]}  Rc8 {[%clk 0:02:19]} 20. Nc3 {[%clk 0:01:48]}  Qb8 {[%clk 0:02:18]} 21. a3 {[%clk 0:01:45]}  Qa7 {[%clk 0:02:18]} 22. f5 {[%clk 0:01:32]}  gxf5 {[%clk 0:02:15]} 23. Nxd5 {[%clk 0:01:31]}  Bd8 {[%clk 0:01:40]} 24. Nf4 {[%clk 0:01:19]}  Qb8 {[%clk 0:01:26]} 25. d5 {[%clk 0:01:18]}  Ncxe5 {[%clk 0:01:21]} 26. dxe6 {[%clk 0:01:13]}  fxe6 {[%clk 0:01:21]} 27. Nxe6 {[%clk 0:01:07]}  Rxc1 {[%clk 0:01:20]} 28. Bxc1 {[%clk 0:01:07]}  Bb6 {[%clk 0:01:18]} 29. Be3 {[%clk 0:01:05]}  Bxe3 {[%clk 0:01:10]} 30. Qxe3 {[%clk 0:01:05]}  Qd6 {[%clk 0:01:09]} 31. Ng7+ {[%clk 0:00:59]}  Kd8 {[%clk 0:01:09]} 32. Nxf5 {[%clk 0:00:58]}  Qc5 {[%clk 0:01:10]} 33. Nd4 {[%clk 0:00:57]}  Re8 {[%clk 0:00:58]} 34. Rd1 {[%clk 0:00:57]}  Kc8 {[%clk 0:00:50]} 35. Rc1 {[%clk 0:00:57]}  Nf3+ {[%clk 0:00:48]} 36. Qxf3 {[%clk 0:00:47]}  Qxc1+ {[%clk 0:00:47]} 37. Kh2 {[%clk 0:00:47]}  Qc7 {[%clk 0:00:46]} 38. Qxh5 {[%clk 0:00:43]}  Rg8 {[%clk 0:00:46]} 39. Nf5 {[%clk 0:00:41]}  Kb8 {[%clk 0:00:43]} 40. Qf3 {[%clk 0:00:41]}  Ne5 {[%clk 0:00:41]} 41. Qd5 {[%clk 0:00:40]}  Rf8 {[%clk 0:00:36]} 42. Nd4 {[%clk 0:00:37]}  Rh8 {[%clk 0:00:34]} 43. Qe4 {[%clk 0:00:23]}  Qg7 {[%clk 0:00:24]} 44. Ne6 {[%clk 0:00:17]}  Ng4+ {[%clk 0:00:23]} 45. Kg1 {[%clk 0:00:17]}  Qxb2 {[%clk 0:00:20]} 46. Qxg4 {[%clk 0:00:17]}  Qxa3 {[%clk 0:00:15]} 47. Qe4 {[%clk 0:00:17]}  Qa1+ {[%clk 0:00:12]} 48. Kh2 {[%clk 0:00:17]}  Qb2 {[%clk 0:00:13]} 49. Nd4 {[%clk 0:00:15]}  Rd8 {[%clk 0:00:12]} 50. Ne6 {[%clk 0:00:14]}  Rd2 {[%clk 0:00:12]} 51. Qf4+ {[%clk 0:00:14]}  Ka7 {[%clk 0:00:11]} 52. Qe3+ {[%clk 0:00:13]}  Kb8 {[%clk 0:00:11]} 53. Qf4+ {[%clk 0:00:13]}  Ka7 {[%clk 0:00:11]} 54. Qe4 {[%clk 0:00:13]}  Re2 {[%clk 0:00:07]} 55. Qd5 {[%clk 0:00:12]}  Rd2 {[%clk 0:00:06]} 56. Qc5+ {[%clk 0:00:12]}  Kb8 {[%clk 0:00:07]} 57. Nf4 {[%clk 0:00:11]}  Qb5 {[%clk 0:00:05]} 58. Qf8+ {[%clk 0:00:11]}  Ka7 {[%clk 0:00:05]} 59. h4 {[%clk 0:00:11]}  Qc6 {[%clk 0:00:04]} 60. h5 {[%clk 0:00:10]}  Qc1 {[%clk 0:00:00]} 61. h6 {[%clk 0:00:09]} 1-0


[Site "https://www.chess.com"]

[Event "Titled Tuesday Blitz August 1 Early 2023"]
[White "Degenbaev, Aziz"]
[Black "Pershina, Elena"]
[WhiteFideId "13802640"]
[BlackFideId "24147516"]
[WhiteElo "2562"]
[BlackElo "2405"]
[Result "1/2-1/2"]
[Round "6"]
[TimeControl "180+1"]
[Date "2023.08.01"]
[WhiteClock "0:00:18"]
[BlackClock "0:00:07"]
[Board "146"]

1. d4 {[%clk 0:03:00]}  d5 {[%clk 0:02:59]} 2. Nf3 {[%clk 0:02:58]}  Nf6 {[%clk 0:02:58]} 3. c4 {[%clk 0:02:57]}  c6 {[%clk 0:02:58]} 4. Nc3 {[%clk 0:02:57]}  dxc4 {[%clk 0:02:59]} 5. a4 {[%clk 0:02:57]}  Bf5 {[%clk 0:02:59]} 6. e3 {[%clk 0:02:57]}  Nbd7 {[%clk 0:02:51]} 7. Bxc4 {[%clk 0:02:56]}  e6 {[%clk 0:02:51]} 8. O-O {[%clk 0:02:53]}  Bb4 {[%clk 0:02:48]} 9. Qe2 {[%clk 0:02:45]}  Ne4 {[%clk 0:02:35]} 10. Nxe4 {[%clk 0:01:45]}  Bxe4 {[%clk 0:02:36]} 11. Nd2 {[%clk 0:01:45]}  Bd5 {[%clk 0:02:29]} 12. Bd3 {[%clk 0:01:44]}  e5 {[%clk 0:02:24]} 13. e4 {[%clk 0:01:29]}  Be6 {[%clk 0:02:23]} 14. d5 {[%clk 0:01:29]}  cxd5 {[%clk 0:02:19]} 15. exd5 {[%clk 0:01:30]}  Bxd5 {[%clk 0:02:16]} 16. Qg4 {[%clk 0:01:31]}  Qe7 {[%clk 0:01:45]} 17. Qxg7 {[%clk 0:01:28]}  O-O-O {[%clk 0:01:44]} 18. Qh6 {[%clk 0:01:04]}  Rdg8 {[%clk 0:01:41]} 19. f3 {[%clk 0:01:04]}  Bc5+ {[%clk 0:01:23]} 20. Kh1 {[%clk 0:01:03]}  Qf6 {[%clk 0:00:57]} 21. Ne4 {[%clk 0:00:59]}  Qxh6 {[%clk 0:00:48]} 22. Bxh6 {[%clk 0:01:00]}  Bd4 {[%clk 0:00:46]} 23. Rac1+ {[%clk 0:00:52]}  Kb8 {[%clk 0:00:45]} 24. b4 {[%clk 0:00:52]}  Rg6 {[%clk 0:00:38]} 25. Bd2 {[%clk 0:00:52]}  f5 {[%clk 0:00:28]} 26. Ng3 {[%clk 0:00:52]}  e4 {[%clk 0:00:20]} 27. fxe4 {[%clk 0:00:51]}  fxe4 {[%clk 0:00:19]} 28. Bxe4 {[%clk 0:00:52]}  Bxe4 {[%clk 0:00:18]} 29. Nxe4 {[%clk 0:00:52]}  Rhg8 {[%clk 0:00:19]} 30. Bf4+ {[%clk 0:00:52]}  Ka8 {[%clk 0:00:18]} 31. Ng3 {[%clk 0:00:52]}  a6 {[%clk 0:00:17]} 32. b5 {[%clk 0:00:52]}  Nc5 {[%clk 0:00:15]} 33. bxa6 {[%clk 0:00:50]}  Rxa6 {[%clk 0:00:14]} 34. Rc4 {[%clk 0:00:50]}  Rd8 {[%clk 0:00:12]} 35. Rd1 {[%clk 0:00:50]}  Ne6 {[%clk 0:00:12]} 36. Bc1 {[%clk 0:00:42]}  Rc6 {[%clk 0:00:11]} 37. Rxc6 {[%clk 0:00:42]}  bxc6 {[%clk 0:00:12]} 38. Nf5 {[%clk 0:00:42]}  c5 {[%clk 0:00:12]} 39. g4 {[%clk 0:00:41]}  Kb7 {[%clk 0:00:11]} 40. Kg2 {[%clk 0:00:41]}  Kc6 {[%clk 0:00:12]} 41. Kf3 {[%clk 0:00:35]}  Ra8 {[%clk 0:00:12]} 42. Be3 {[%clk 0:00:31]}  Rxa4 {[%clk 0:00:11]} 43. Bxd4 {[%clk 0:00:28]}  Nxd4+ {[%clk 0:00:12]} 44. Nxd4+ {[%clk 0:00:27]}  cxd4 {[%clk 0:00:11]} 45. h3 {[%clk 0:00:25]}  Kd5 {[%clk 0:00:11]} 46. Rb1 {[%clk 0:00:24]}  Ra3+ {[%clk 0:00:11]} 47. Kg2 {[%clk 0:00:24]}  Ke4 {[%clk 0:00:12]} 48. Rb7 {[%clk 0:00:24]}  d3 {[%clk 0:00:11]} 49. Re7+ {[%clk 0:00:24]}  Kf4 {[%clk 0:00:10]} 50. Rxh7 {[%clk 0:00:23]}  Ra2+ {[%clk 0:00:10]} 51. Kf1 {[%clk 0:00:22]}  Kf3 {[%clk 0:00:09]} 52. Ke1 {[%clk 0:00:23]}  Ke3 {[%clk 0:00:10]} 53. Re7+ {[%clk 0:00:23]}  Kf3 {[%clk 0:00:10]} 54. g5 {[%clk 0:00:23]}  Rh2 {[%clk 0:00:09]} 55. Rd7 {[%clk 0:00:18]}  Ke3 {[%clk 0:00:08]} 56. Re7+ {[%clk 0:00:19]}  Kf3 {[%clk 0:00:08]} 57. Rh7 {[%clk 0:00:19]}  Ke3 {[%clk 0:00:07]} 58. Re7+ {[%clk 0:00:18]}  Kf3 {[%clk 0:00:07]} 1/2-1/2


[Site "https://www.chess.com"]

[Event "Titled Tuesday Blitz August 1 Early 2023"]
[White "Diaz Herquinio, Brahian"]
[Black "Hajiyev, Kanan"]
[WhiteFideId "3809480"]
[BlackFideId "13404148"]
[WhiteElo "2404"]
[BlackElo "2561"]
[Result "1-0"]
[Round "6"]
[TimeControl "180+1"]
[Date "2023.08.01"]
[WhiteClock "0:00:19"]
[BlackClock "0:01:08"]
[Board "147"]

1. e4 {[%clk 0:02:56]}  c6 {[%clk 0:02:53]} 2. d4 {[%clk 0:02:56]}  d5 {[%clk 0:02:54]} 3. Nc3 {[%clk 0:02:56]}  a6 {[%clk 0:02:54]} 4. Nf3 {[%clk 0:02:55]}  Bg4 {[%clk 0:02:53]} 5. Be2 {[%clk 0:02:53]}  e6 {[%clk 0:02:48]} 6. h3 {[%clk 0:02:53]}  Bh5 {[%clk 0:02:48]} 7. Ne5 {[%clk 0:02:53]}  Bxe2 {[%clk 0:02:47]} 8. Qxe2 {[%clk 0:02:54]}  Nf6 {[%clk 0:02:48]} 9. exd5 {[%clk 0:02:54]}  cxd5 {[%clk 0:02:48]} 10. O-O {[%clk 0:02:51]}  Nc6 {[%clk 0:02:47]} 11. Nxc6 {[%clk 0:02:50]}  bxc6 {[%clk 0:02:48]} 12. Na4 {[%clk 0:02:39]}  Bd6 {[%clk 0:02:47]} 13. Bg5 {[%clk 0:02:38]}  h6 {[%clk 0:02:46]} 14. Bxf6 {[%clk 0:02:34]}  Qxf6 {[%clk 0:02:47]} 15. Rfd1 {[%clk 0:02:29]}  O-O {[%clk 0:02:46]} 16. c4 {[%clk 0:02:29]}  a5 {[%clk 0:02:28]} 17. Rac1 {[%clk 0:02:26]}  Bf4 {[%clk 0:02:25]} 18. Rc3 {[%clk 0:02:21]}  Rab8 {[%clk 0:02:24]} 19. g3 {[%clk 0:02:17]}  Bd6 {[%clk 0:02:19]} 20. b3 {[%clk 0:02:15]}  Bb4 {[%clk 0:02:16]} 21. Rc2 {[%clk 0:02:08]}  Rfd8 {[%clk 0:02:15]} 22. Kg2 {[%clk 0:02:07]}  Qf5 {[%clk 0:02:06]} 23. Qd3 {[%clk 0:01:53]}  Qf6 {[%clk 0:02:02]} 24. cxd5 {[%clk 0:01:48]}  cxd5 {[%clk 0:02:01]} 25. Nc5 {[%clk 0:01:47]}  Bxc5 {[%clk 0:01:54]} 26. Rxc5 {[%clk 0:01:42]}  Ra8 {[%clk 0:01:41]} 27. Qc3 {[%clk 0:01:32]}  Rdb8 {[%clk 0:01:38]} 28. Rd3 {[%clk 0:01:30]}  h5 {[%clk 0:01:38]} 29. Rxa5 {[%clk 0:01:17]}  Rxa5 {[%clk 0:01:32]} 30. Qxa5 {[%clk 0:01:18]}  Qf5 {[%clk 0:01:33]} 31. Qc7 {[%clk 0:01:09]}  Ra8 {[%clk 0:01:30]} 32. Rf3 {[%clk 0:01:08]}  Qg6 {[%clk 0:01:29]} 33. a4 {[%clk 0:01:04]}  h4 {[%clk 0:01:29]} 34. g4 {[%clk 0:01:00]}  f5 {[%clk 0:01:29]} 35. Rf4 {[%clk 0:00:48]}  Kh7 {[%clk 0:01:23]} 36. Kh2 {[%clk 0:00:43]}  Qg5 {[%clk 0:01:21]} 37. gxf5 {[%clk 0:00:32]}  Rf8 {[%clk 0:01:19]} 38. a5 {[%clk 0:00:25]}  Rxf5 {[%clk 0:01:12]} 39. Rxf5 {[%clk 0:00:25]}  Qxf5 {[%clk 0:01:12]} 40. Kg2 {[%clk 0:00:25]}  Qe4+ {[%clk 0:01:13]} 41. Kh2 {[%clk 0:00:21]}  Qxd4 {[%clk 0:01:13]} 42. Qf7 {[%clk 0:00:19]}  Qe5+ {[%clk 0:01:10]} 43. Kg2 {[%clk 0:00:19]}  Qe4+ {[%clk 0:01:10]} 44. Qf3 {[%clk 0:00:19]}  Qb4 {[%clk 0:01:09]} 45. a6 {[%clk 0:00:16]}  Qa3 {[%clk 0:01:08]} 46. Qh5+ {[%clk 0:00:14]}  Kg8 {[%clk 0:01:08]} 47. Qe8+ {[%clk 0:00:13]}  Kh7 {[%clk 0:01:08]} 48. Qxe6 {[%clk 0:00:13]}  d4 {[%clk 0:01:06]} 49. Qe4+ {[%clk 0:00:13]}  Kg8 {[%clk 0:01:05]} 50. Qxd4 {[%clk 0:00:13]}  Qxa6 {[%clk 0:01:06]} 51. Qc4+ {[%clk 0:00:14]}  Qxc4 {[%clk 0:01:05]} 52. bxc4 {[%clk 0:00:14]}  Kf7 {[%clk 0:01:06]} 53. Kf3 {[%clk 0:00:15]}  Ke6 {[%clk 0:01:06]} 54. Kg4 {[%clk 0:00:16]}  Ke5 {[%clk 0:01:05]} 55. Kxh4 {[%clk 0:00:16]}  Kd4 {[%clk 0:01:06]} 56. Kg5 {[%clk 0:00:17]}  Kxc4 {[%clk 0:01:06]} 57. Kg6 {[%clk 0:00:16]}  Kd4 {[%clk 0:01:07]} 58. Kxg7 {[%clk 0:00:17]}  Ke5 {[%clk 0:01:08]} 59. h4 {[%clk 0:00:18]}  Kf5 {[%clk 0:01:08]} 60. h5 {[%clk 0:00:19]}  Kg5 {[%clk 0:01:08]} 61. h6 {[%clk 0:00:19]} 1-0


[Site "https://www.chess.com"]

[Event "Titled Tuesday Blitz August 1 Early 2023"]
[White "robertoalejandro10"]
[Black "Dishman, Stephen"]
[BlackFideId "403024"]
[WhiteElo "2561"]
[BlackElo "2402"]
[Result "1-0"]
[Round "6"]
[TimeControl "180+1"]
[Date "2023.08.01"]
[WhiteClock "0:00:09"]
[BlackClock "0:00:07"]
[Board "148"]

1. Nf3 {[%clk 0:03:00]}  d5 {[%clk 0:02:59]} 2. b3 {[%clk 0:02:59]}  Bg4 {[%clk 0:02:57]} 3. Bb2 {[%clk 0:02:58]}  Nd7 {[%clk 0:02:57]} 4. g3 {[%clk 0:02:58]}  Bxf3 {[%clk 0:02:55]} 5. exf3 {[%clk 0:02:59]}  e6 {[%clk 0:02:54]} 6. f4 {[%clk 0:02:58]}  Ngf6 {[%clk 0:02:54]} 7. Bg2 {[%clk 0:02:58]}  g6 {[%clk 0:02:53]} 8. O-O {[%clk 0:02:58]}  Bg7 {[%clk 0:02:53]} 9. d3 {[%clk 0:02:58]}  O-O {[%clk 0:02:53]} 10. Nd2 {[%clk 0:02:58]}  a5 {[%clk 0:02:52]} 11. a4 {[%clk 0:02:57]}  c6 {[%clk 0:02:52]} 12. Nf3 {[%clk 0:02:57]}  Ng4 {[%clk 0:02:41]} 13. Bxg7 {[%clk 0:02:54]}  Kxg7 {[%clk 0:02:42]} 14. Re1 {[%clk 0:02:51]}  Qc7 {[%clk 0:02:37]} 15. Qd2 {[%clk 0:02:50]}  Rae8 {[%clk 0:02:31]} 16. Qc3+ {[%clk 0:02:40]}  f6 {[%clk 0:02:21]} 17. b4 {[%clk 0:02:08]}  axb4 {[%clk 0:02:19]} 18. Qxb4 {[%clk 0:02:07]}  e5 {[%clk 0:02:08]} 19. h3 {[%clk 0:01:48]}  Nh6 {[%clk 0:02:03]} 20. fxe5 {[%clk 0:01:43]}  fxe5 {[%clk 0:02:01]} 21. Rab1 {[%clk 0:01:43]}  b6 {[%clk 0:01:59]} 22. Re2 {[%clk 0:01:35]}  Nf5 {[%clk 0:01:54]} 23. Rbe1 {[%clk 0:01:30]}  c5 {[%clk 0:01:26]} 24. Qb2 {[%clk 0:01:23]}  d4 {[%clk 0:01:10]} 25. Qb3 {[%clk 0:01:23]}  Re7 {[%clk 0:00:50]} 26. Ng5 {[%clk 0:00:48]}  Rfe8 {[%clk 0:00:47]} 27. Bd5 {[%clk 0:00:45]}  Qd6 {[%clk 0:00:40]} 28. Bg2 {[%clk 0:00:39]}  h6 {[%clk 0:00:28]} 29. Ne4 {[%clk 0:00:38]}  Qc7 {[%clk 0:00:28]} 30. Nd2 {[%clk 0:00:37]}  Nd6 {[%clk 0:00:23]} 31. Nc4 {[%clk 0:00:18]}  Nxc4 {[%clk 0:00:23]} 32. Qxc4 {[%clk 0:00:19]}  Nf6 {[%clk 0:00:23]} 33. Rb1 {[%clk 0:00:16]}  Qd6 {[%clk 0:00:22]} 34. Qb5 {[%clk 0:00:16]}  Re6 {[%clk 0:00:22]} 35. Qa6 {[%clk 0:00:15]}  R8e7 {[%clk 0:00:22]} 36. a5 {[%clk 0:00:15]}  bxa5 {[%clk 0:00:22]} 37. Qxa5 {[%clk 0:00:15]}  e4 {[%clk 0:00:21]} 38. dxe4 {[%clk 0:00:16]}  Nxe4 {[%clk 0:00:21]} 39. Bxe4 {[%clk 0:00:16]}  Rxe4 {[%clk 0:00:22]} 40. Rxe4 {[%clk 0:00:16]}  Rxe4 {[%clk 0:00:23]} 41. Rb7+ {[%clk 0:00:15]}  Re7 {[%clk 0:00:23]} 42. Qa7 {[%clk 0:00:15]}  Rxb7 {[%clk 0:00:22]} 43. Qxb7+ {[%clk 0:00:16]}  Kf6 {[%clk 0:00:22]} 44. Qf3+ {[%clk 0:00:15]}  Kg7 {[%clk 0:00:21]} 45. Qb7+ {[%clk 0:00:15]}  Kf6 {[%clk 0:00:21]} 46. Qf3+ {[%clk 0:00:15]}  Kg7 {[%clk 0:00:21]} 47. Qe4 {[%clk 0:00:15]}  Kf6 {[%clk 0:00:19]} 48. h4 {[%clk 0:00:15]}  g5 {[%clk 0:00:19]} 49. h5 {[%clk 0:00:15]}  Qe5 {[%clk 0:00:17]} 50. Qg6+ {[%clk 0:00:15]}  Ke7 {[%clk 0:00:18]} 51. Qxh6 {[%clk 0:00:15]}  Qe1+ {[%clk 0:00:18]} 52. Kg2 {[%clk 0:00:16]}  Qe4+ {[%clk 0:00:18]} 53. Kg1 {[%clk 0:00:15]}  Qe1+ {[%clk 0:00:17]} 54. Kg2 {[%clk 0:00:15]}  Qe4+ {[%clk 0:00:18]} 55. Kh2 {[%clk 0:00:13]}  Qf5 {[%clk 0:00:18]} 56. Qg7+ {[%clk 0:00:10]}  Kd6 {[%clk 0:00:18]} 57. Qh6+ {[%clk 0:00:08]}  Kd5 {[%clk 0:00:17]} 58. Kg1 {[%clk 0:00:06]}  Qxc2 {[%clk 0:00:16]} 59. Qxg5+ {[%clk 0:00:06]}  Kc4 {[%clk 0:00:16]} 60. h6 {[%clk 0:00:06]}  Qd1+ {[%clk 0:00:16]} 61. Kg2 {[%clk 0:00:07]}  Qe2 {[%clk 0:00:15]} 62. Qg8+ {[%clk 0:00:06]}  Kc3 {[%clk 0:00:14]} 63. h7 {[%clk 0:00:07]}  Qe4+ {[%clk 0:00:14]} 64. Kh2 {[%clk 0:00:08]}  Qf3 {[%clk 0:00:13]} 65. Kg1 {[%clk 0:00:08]}  Qd1+ {[%clk 0:00:13]} 66. Kg2 {[%clk 0:00:09]}  Qh5 {[%clk 0:00:13]} 67. h8=Q {[%clk 0:00:09]}  Qd5+ {[%clk 0:00:07]} 68. Qxd5 {[%clk 0:00:09]} 1-0


[Site "https://www.chess.com"]

[Event "Titled Tuesday Blitz August 1 Early 2023"]
[White "Ahmad, Khagan"]
[Black "Ladan, Nicholas"]
[WhiteFideId "13431552"]
[BlackFideId "30918855"]
[WhiteElo "2560"]
[BlackElo "2401"]
[Result "1-0"]
[Round "6"]
[TimeControl "180+1"]
[Date "2023.08.01"]
[WhiteClock "0:00:08"]
[BlackClock "0:00:00"]
[Board "149"]

1. e4 {[%clk 0:03:00]}  e5 {[%clk 0:03:00]} 2. Nf3 {[%clk 0:03:00]}  Nc6 {[%clk 0:03:00]} 3. Bc4 {[%clk 0:03:00]}  Nf6 {[%clk 0:02:59]} 4. O-O {[%clk 0:03:00]}  Nxe4 {[%clk 0:02:57]} 5. d4 {[%clk 0:02:42]}  d5 {[%clk 0:02:56]} 6. Bb5 {[%clk 0:02:30]}  exd4 {[%clk 0:02:55]} 7. Nxd4 {[%clk 0:02:22]}  Bd7 {[%clk 0:02:54]} 8. Re1 {[%clk 0:02:08]}  Bd6 {[%clk 0:02:28]} 9. Bxc6 {[%clk 0:01:07]}  bxc6 {[%clk 0:02:18]} 10. Nc3 {[%clk 0:01:04]}  O-O {[%clk 0:01:21]} 11. Nxe4 {[%clk 0:01:02]}  dxe4 {[%clk 0:01:21]} 12. Rxe4 {[%clk 0:01:02]}  c5 {[%clk 0:01:20]} 13. Nf3 {[%clk 0:01:01]}  Bc6 {[%clk 0:01:14]} 14. Re1 {[%clk 0:01:00]}  Qf6 {[%clk 0:01:10]} 15. Qd3 {[%clk 0:00:30]}  Rad8 {[%clk 0:01:08]} 16. Bg5 {[%clk 0:00:29]}  Qxb2 {[%clk 0:00:34]} 17. Bxd8 {[%clk 0:00:28]}  Rxd8 {[%clk 0:00:35]} 18. Qf5 {[%clk 0:00:29]}  g6 {[%clk 0:00:26]} 19. Qg5 {[%clk 0:00:28]}  Rb8 {[%clk 0:00:25]} 20. Ne5 {[%clk 0:00:22]}  h6 {[%clk 0:00:10]} 21. Qf6 {[%clk 0:00:17]}  Bxe5 {[%clk 0:00:09]} 22. Qxe5 {[%clk 0:00:17]}  Qxe5 {[%clk 0:00:03]} 23. Rxe5 {[%clk 0:00:18]}  Rb5 {[%clk 0:00:04]} 24. h4 {[%clk 0:00:18]}  Ra5 {[%clk 0:00:04]} 25. Re7 {[%clk 0:00:17]}  Ba4 {[%clk 0:00:00]} 26. Rd1 {[%clk 0:00:08]} 1-0


[Site "https://www.chess.com"]

[Event "Titled Tuesday Blitz August 1 Early 2023"]
[White "Gauravthegm"]
[Black "Nurgaliyeva, Zarina"]
[BlackFideId "13730096"]
[WhiteElo "2394"]
[BlackElo "2549"]
[Result "1-0"]
[Round "6"]
[TimeControl "180+1"]
[Date "2023.08.01"]
[WhiteClock "0:00:18"]
[BlackClock "0:00:00"]
[Board "150"]

1. e4 {[%clk 0:03:00]}  e5 {[%clk 0:02:59]} 2. Nf3 {[%clk 0:03:00]}  Nc6 {[%clk 0:03:00]} 3. Bc4 {[%clk 0:02:59]}  Nf6 {[%clk 0:02:58]} 4. d3 {[%clk 0:02:58]}  h6 {[%clk 0:02:56]} 5. Nc3 {[%clk 0:02:57]}  Bc5 {[%clk 0:02:55]} 6. h3 {[%clk 0:02:57]}  d6 {[%clk 0:02:56]} 7. a3 {[%clk 0:02:56]}  a6 {[%clk 0:02:55]} 8. b4 {[%clk 0:02:54]}  Ba7 {[%clk 0:02:54]} 9. O-O {[%clk 0:02:54]}  O-O {[%clk 0:02:53]} 10. Be3 {[%clk 0:02:53]}  Be6 {[%clk 0:02:53]} 11. Ba2 {[%clk 0:02:51]}  d5 {[%clk 0:02:48]} 12. Bxa7 {[%clk 0:02:47]}  Rxa7 {[%clk 0:02:48]} 13. exd5 {[%clk 0:02:45]}  Nxd5 {[%clk 0:02:49]} 14. Nxd5 {[%clk 0:02:42]}  Bxd5 {[%clk 0:02:50]} 15. Bxd5 {[%clk 0:02:31]}  Qxd5 {[%clk 0:02:51]} 16. c4 {[%clk 0:02:26]}  Qd6 {[%clk 0:02:48]} 17. Qe2 {[%clk 0:02:24]}  Raa8 {[%clk 0:02:46]} 18. Rfe1 {[%clk 0:02:21]}  Rfe8 {[%clk 0:02:45]} 19. Qe4 {[%clk 0:02:16]}  Rad8 {[%clk 0:02:43]} 20. Rad1 {[%clk 0:02:15]}  Re6 {[%clk 0:02:30]} 21. b5 {[%clk 0:02:04]}  axb5 {[%clk 0:02:13]} 22. cxb5 {[%clk 0:02:04]}  Na5 {[%clk 0:02:13]} 23. Nxe5 {[%clk 0:01:57]}  b6 {[%clk 0:01:06]} 24. Qf5 {[%clk 0:01:22]}  Rf6 {[%clk 0:01:04]} 25. Qh5 {[%clk 0:01:15]}  Qc5 {[%clk 0:00:37]} 26. d4 {[%clk 0:00:54]}  Rxd4 {[%clk 0:00:37]} 27. Rxd4 {[%clk 0:00:50]}  Qxd4 {[%clk 0:00:38]} 28. Ng4 {[%clk 0:00:47]}  Rg6 {[%clk 0:00:25]} 29. Qf5 {[%clk 0:00:42]}  Qc4 {[%clk 0:00:10]} 30. Re8+ {[%clk 0:00:29]}  Kh7 {[%clk 0:00:08]} 31. Ne5 {[%clk 0:00:23]}  Qd5 {[%clk 0:00:03]} 32. Rh8+ {[%clk 0:00:17]}  Kxh8 {[%clk 0:00:00]} 33. Nxg6+ {[%clk 0:00:18]} 1-0


[Site "https://www.chess.com"]